[Event "January 2 Early 2024"]
[Site "https://www.chess.com"]
[Date "2024.01.02"]
[Round "9"]
[White "Bologan, Victor"]
[Black "Coca Cubillos, Jesus Alberto"]
[Result "1/2-1/2"]
[Board "33"]
[TimeControl "180+1"]
[WhiteFideId "13900048"]
[BlackFideId "4462912"]
[WhiteElo "2822"]
[BlackElo "2602"]
[WhiteTeam "MDA"]
[BlackTeam "COL"]
[WhiteClock "0:00:58"]
[BlackClock "0:01:17"]

1. e4 {[%clk 0:03:00]}  g6 {[%clk 0:02:58]} 2. d4 {[%clk 0:03:00]}  Bg7 {[%clk 0:02:59]} 3. c4 {[%clk 0:02:59]}  d6 {[%clk 0:02:59]} 4. Nc3 {[%clk 0:02:59]}  Nh6 {[%clk 0:03:00]} 5. Be2 {[%clk 0:02:53]}  O-O {[%clk 0:03:00]} 6. Nf3 {[%clk 0:02:53]}  Kh8 {[%clk 0:03:00]} 7. h4 {[%clk 0:02:50]}  Bg4 {[%clk 0:02:59]} 8. h5 {[%clk 0:02:50]}  Bxh5 {[%clk 0:02:58]} 9. Ng5 {[%clk 0:02:49]}  Bxe2 {[%clk 0:02:57]} 10. Qxe2 {[%clk 0:02:48]}  Nc6 {[%clk 0:02:56]} 11. Be3 {[%clk 0:02:45]}  e5 {[%clk 0:02:55]} 12. dxe5 {[%clk 0:02:43]}  dxe5 {[%clk 0:02:53]} 13. Rd1 {[%clk 0:02:41]}  Nd4 {[%clk 0:02:54]} 14. Qd3 {[%clk 0:02:32]}  c6 {[%clk 0:02:47]} 15. f4 {[%clk 0:02:31]}  f6 {[%clk 0:02:36]} 16. fxe5 {[%clk 0:02:25]}  fxe5 {[%clk 0:02:31]} 17. Bxd4 {[%clk 0:02:09]}  Qxd4 {[%clk 0:02:28]} 18. Qe2 {[%clk 0:02:04]}  Qb6 {[%clk 0:02:20]} 19. Rd7 {[%clk 0:02:02]}  Rad8 {[%clk 0:02:17]} 20. Rxg7 {[%clk 0:02:00]}  Kxg7 {[%clk 0:02:12]} 21. Ne6+ {[%clk 0:02:00]}  Kg8 {[%clk 0:02:12]} 22. Nxf8 {[%clk 0:01:58]}  Rxf8 {[%clk 0:02:12]} 23. Kd1 {[%clk 0:01:50]}  Qd4+ {[%clk 0:02:10]} 24. Kc1 {[%clk 0:01:49]}  Kg7 {[%clk 0:02:09]} 25. Rd1 {[%clk 0:01:48]}  Qb6 {[%clk 0:02:07]} 26. Qd2 {[%clk 0:01:41]}  Rf2 {[%clk 0:02:05]} 27. Qd7+ {[%clk 0:01:39]}  Nf7 {[%clk 0:02:05]} 28. Rd2 {[%clk 0:01:26]}  Qe3 {[%clk 0:02:01]} 29. Kc2 {[%clk 0:01:23]}  Rxd2+ {[%clk 0:01:59]} 30. Qxd2 {[%clk 0:01:23]}  Qxd2+ {[%clk 0:01:59]} 31. Kxd2 {[%clk 0:01:23]}  Kf6 {[%clk 0:01:57]} 32. c5 {[%clk 0:01:23]}  h5 {[%clk 0:01:53]} 33. b4 {[%clk 0:01:22]}  h4 {[%clk 0:01:50]} 34. Ke3 {[%clk 0:01:21]}  g5 {[%clk 0:01:47]} 35. a4 {[%clk 0:01:19]}  g4 {[%clk 0:01:47]} 36. b5 {[%clk 0:01:18]}  h3 {[%clk 0:01:40]} 37. gxh3 {[%clk 0:01:18]}  gxh3 {[%clk 0:01:41]} 38. Kf2 {[%clk 0:01:16]}  Ng5 {[%clk 0:01:41]} 39. Kg3 {[%clk 0:01:15]}  Ke6 {[%clk 0:01:38]} 40. a5 {[%clk 0:01:11]}  cxb5 {[%clk 0:01:35]} 41. Nxb5 {[%clk 0:01:09]}  a6 {[%clk 0:01:33]} 42. c6 {[%clk 0:01:08]}  bxc6 {[%clk 0:01:30]} 43. Nc7+ {[%clk 0:01:08]}  Kd6 {[%clk 0:01:30]} 44. Nxa6 {[%clk 0:01:08]}  Nxe4+ {[%clk 0:01:30]} 45. Kxh3 {[%clk 0:01:07]}  c5 {[%clk 0:01:31]} 46. Kg2 {[%clk 0:01:06]}  Kc6 {[%clk 0:01:29]} 47. Nb8+ {[%clk 0:01:04]}  Kc7 {[%clk 0:01:28]} 48. Kf3 {[%clk 0:01:00]}  Kxb8 {[%clk 0:01:15]} 49. Kxe4 {[%clk 0:00:59]}  Kb7 {[%clk 0:01:16]} 50. Kxe5 {[%clk 0:00:58]}  Ka6 {[%clk 0:01:16]} 51. Kd5 {[%clk 0:00:58]}  Kxa5 {[%clk 0:01:17]} 52. Kxc5 {[%clk 0:00:58]} 1/2-1/2

[Event "January 2 Early 2024"]
[Site "https://www.chess.com"]
[Date "2024.01.02"]
[Round "9"]
[White "Bartel, Mateusz"]
[Black "Tiarks, Jann-Christian"]
[Result "1-0"]
[Board "34"]
[TimeControl "180+1"]
[WhiteFideId "1112635"]
[BlackFideId "12951595"]
[WhiteElo "2813"]
[BlackElo "2481"]
[WhiteTeam "POL"]
[BlackTeam "GER"]
[WhiteClock "0:00:23"]
[BlackClock "0:00:32"]

1. e4 {[%clk 0:03:00]}  e6 {[%clk 0:02:55]} 2. d3 {[%clk 0:02:59]}  d5 {[%clk 0:02:55]} 3. Nd2 {[%clk 0:02:58]}  c5 {[%clk 0:02:54]} 4. Ngf3 {[%clk 0:02:53]}  Nc6 {[%clk 0:02:55]} 5. g3 {[%clk 0:02:53]}  Nf6 {[%clk 0:02:54]} 6. Bg2 {[%clk 0:02:53]}  b5 {[%clk 0:02:52]} 7. O-O {[%clk 0:02:48]}  Bb7 {[%clk 0:02:52]} 8. exd5 {[%clk 0:02:47]}  Nxd5 {[%clk 0:02:50]} 9. Ne4 {[%clk 0:02:42]}  Be7 {[%clk 0:02:48]} 10. c4 {[%clk 0:02:29]}  bxc4 {[%clk 0:02:44]} 11. dxc4 {[%clk 0:02:29]}  Nf6 {[%clk 0:02:38]} 12. Nc3 {[%clk 0:02:17]}  O-O {[%clk 0:02:33]} 13. Be3 {[%clk 0:02:17]}  Qc7 {[%clk 0:02:18]} 14. Nb5 {[%clk 0:02:07]}  Qb6 {[%clk 0:02:18]} 15. Qe2 {[%clk 0:01:57]}  a6 {[%clk 0:02:15]} 16. Nc3 {[%clk 0:01:56]}  Rfd8 {[%clk 0:02:14]} 17. Na4 {[%clk 0:01:47]}  Qa7 {[%clk 0:02:12]} 18. Rfd1 {[%clk 0:01:42]}  Nd4 {[%clk 0:02:10]} 19. Bxd4 {[%clk 0:01:42]}  cxd4 {[%clk 0:02:10]} 20. Ne5 {[%clk 0:01:41]}  Rac8 {[%clk 0:02:03]} 21. b3 {[%clk 0:01:34]}  h6 {[%clk 0:01:53]} 22. Nb2 {[%clk 0:01:16]}  Bxg2 {[%clk 0:01:47]} 23. Kxg2 {[%clk 0:01:16]}  Qb7+ {[%clk 0:01:47]} 24. Qf3 {[%clk 0:01:16]}  Qxf3+ {[%clk 0:01:44]} 25. Kxf3 {[%clk 0:01:14]}  Nd7 {[%clk 0:01:41]} 26. Nxd7 {[%clk 0:01:13]}  Rxd7 {[%clk 0:01:42]} 27. Nd3 {[%clk 0:01:12]}  f6 {[%clk 0:01:42]} 28. g4 {[%clk 0:01:09]}  e5 {[%clk 0:01:42]} 29. h4 {[%clk 0:01:00]}  Bd6 {[%clk 0:01:38]} 30. h5 {[%clk 0:00:56]}  f5 {[%clk 0:01:29]} 31. gxf5 {[%clk 0:00:55]}  Rf8 {[%clk 0:01:30]} 32. Ke4 {[%clk 0:00:44]}  Rdf7 {[%clk 0:01:30]} 33. Rg1 {[%clk 0:00:39]}  Rxf5 {[%clk 0:01:29]} 34. Rg6 {[%clk 0:00:40]}  Bb8 {[%clk 0:01:08]} 35. Rag1 {[%clk 0:00:40]}  R5f7 {[%clk 0:01:05]} 36. Rxa6 {[%clk 0:00:38]}  Kh7 {[%clk 0:00:59]} 37. Rag6 {[%clk 0:00:38]}  Bc7 {[%clk 0:00:57]} 38. a4 {[%clk 0:00:37]}  Rb8 {[%clk 0:00:56]} 39. b4 {[%clk 0:00:37]}  Bd8 {[%clk 0:00:51]} 40. a5 {[%clk 0:00:37]}  Bf6 {[%clk 0:00:50]} 41. a6 {[%clk 0:00:36]}  Rc7 {[%clk 0:00:50]} 42. Rc1 {[%clk 0:00:35]}  Rb6 {[%clk 0:00:47]} 43. b5 {[%clk 0:00:35]}  Kg8 {[%clk 0:00:45]} 44. Rgg1 {[%clk 0:00:33]}  Kf7 {[%clk 0:00:45]} 45. Ra1 {[%clk 0:00:30]}  Rb8 {[%clk 0:00:43]} 46. a7 {[%clk 0:00:26]}  Ra8 {[%clk 0:00:43]} 47. b6 {[%clk 0:00:26]}  Rb7 {[%clk 0:00:41]} 48. c5 {[%clk 0:00:26]}  Ke6 {[%clk 0:00:40]} 49. Rgc1 {[%clk 0:00:26]}  Bd8 {[%clk 0:00:38]} 50. Rab1 {[%clk 0:00:23]}  Kd7 {[%clk 0:00:32]} 1-0

[Event "January 2 Early 2024"]
[Site "https://www.chess.com"]
[Date "2024.01.02"]
[Round "9"]
[White "Gajwa Ankit"]
[Black "Molina, Roberto Junio Brito"]
[Result "0-1"]
[Board "35"]
[TimeControl "180+1"]
[WhiteFideId "5077834"]
[BlackFideId "2109450"]
[WhiteElo "2394"]
[BlackElo "2806"]
[WhiteTeam "IND"]
[BlackTeam "BRA"]
[WhiteClock "0:00:03"]
[BlackClock "0:00:21"]

1. e4 {[%clk 0:03:00]}  c6 {[%clk 0:02:59]} 2. d4 {[%clk 0:03:00]}  d5 {[%clk 0:03:00]} 3. e5 {[%clk 0:02:59]}  Bf5 {[%clk 0:03:00]} 4. Nf3 {[%clk 0:02:58]}  e6 {[%clk 0:02:59]} 5. Be2 {[%clk 0:02:55]}  Nd7 {[%clk 0:02:57]} 6. O-O {[%clk 0:02:54]}  Bg6 {[%clk 0:02:55]} 7. Nbd2 {[%clk 0:02:47]}  Nh6 {[%clk 0:02:55]} 8. Re1 {[%clk 0:02:46]}  Nf5 {[%clk 0:02:55]} 9. Nf1 {[%clk 0:02:46]}  Be7 {[%clk 0:02:55]} 10. c3 {[%clk 0:02:43]}  O-O {[%clk 0:02:54]} 11. h3 {[%clk 0:02:36]}  c5 {[%clk 0:02:53]} 12. Ne3 {[%clk 0:02:32]}  Rc8 {[%clk 0:02:49]} 13. c4 {[%clk 0:02:17]}  Nxe3 {[%clk 0:02:47]} 14. Bxe3 {[%clk 0:01:59]}  dxc4 {[%clk 0:02:47]} 15. dxc5 {[%clk 0:01:37]}  Nxc5 {[%clk 0:02:45]} 16. Bxc4 {[%clk 0:01:33]}  Qb6 {[%clk 0:02:23]} 17. Qe2 {[%clk 0:01:24]}  Rfd8 {[%clk 0:02:19]} 18. Rac1 {[%clk 0:01:21]}  a5 {[%clk 0:02:03]} 19. Nd4 {[%clk 0:01:15]}  a4 {[%clk 0:01:50]} 20. Nb5 {[%clk 0:01:01]}  Qa5 {[%clk 0:01:42]} 21. Red1 {[%clk 0:00:54]}  b6 {[%clk 0:01:34]} 22. Nd6 {[%clk 0:00:45]}  Rb8 {[%clk 0:01:31]} 23. Bd2 {[%clk 0:00:35]}  Qa8 {[%clk 0:01:30]} 24. Be3 {[%clk 0:00:32]}  Ne4 {[%clk 0:01:24]} 25. Bf4 {[%clk 0:00:23]}  Nc5 {[%clk 0:01:09]} 26. b4 {[%clk 0:00:22]}  axb3 {[%clk 0:01:08]} 27. axb3 {[%clk 0:00:22]}  Rd7 {[%clk 0:00:47]} 28. Bb5 {[%clk 0:00:18]}  Ra7 {[%clk 0:00:46]} 29. Rd2 {[%clk 0:00:17]}  Nxb3 {[%clk 0:00:37]} 30. Bc6 {[%clk 0:00:12]}  Nxc1 {[%clk 0:00:36]} 31. Qb5 {[%clk 0:00:08]}  Ra5 {[%clk 0:00:31]} 32. Bxa8 {[%clk 0:00:06]}  Rxb5 {[%clk 0:00:32]} 33. Nxb5 {[%clk 0:00:07]}  Rxa8 {[%clk 0:00:31]} 34. Rd7 {[%clk 0:00:07]}  Ne2+ {[%clk 0:00:30]} 35. Kh2 {[%clk 0:00:07]}  Nxf4 {[%clk 0:00:31]} 36. Rxe7 {[%clk 0:00:07]}  Nd3 {[%clk 0:00:28]} 37. Nc7 {[%clk 0:00:04]}  Rc8 {[%clk 0:00:25]} 38. Ne8 {[%clk 0:00:04]}  Nxe5 {[%clk 0:00:24]} 39. Nd6 {[%clk 0:00:04]}  Rb8 {[%clk 0:00:22]} 40. Nb5 {[%clk 0:00:04]}  h5 {[%clk 0:00:21]} 41. f4 {[%clk 0:00:04]}  Nd3 {[%clk 0:00:19]} 42. g3 {[%clk 0:00:04]}  h4 {[%clk 0:00:20]} 43. gxh4 {[%clk 0:00:04]}  Nxf4 {[%clk 0:00:20]} 44. Kg3 {[%clk 0:00:05]}  Nh5+ {[%clk 0:00:20]} 45. Kf3 {[%clk 0:00:05]}  Nf6 {[%clk 0:00:21]} 46. Kf4 {[%clk 0:00:04]}  Nd5+ {[%clk 0:00:21]} 47. Kg5 {[%clk 0:00:03]}  Nxe7 {[%clk 0:00:21]} 0-1

[Event "January 2 Early 2024"]
[Site "https://www.chess.com"]
[Date "2024.01.02"]
[Round "9"]
[White "Travadon, Loic"]
[Black "Gabrielian, Artur"]
[Result "1-0"]
[Board "36"]
[TimeControl "180+1"]
[WhiteFideId "26092131"]
[BlackFideId "4131002"]
[WhiteElo "2309"]
[BlackElo "2805"]
[WhiteTeam "FRA"]
[BlackTeam "RUS"]
[WhiteClock "0:00:15"]
[BlackClock "0:00:00"]

1. e4 {[%clk 0:03:00]}  e5 {[%clk 0:02:58]} 2. Nc3 {[%clk 0:02:59]}  Nf6 {[%clk 0:02:58]} 3. f4 {[%clk 0:02:59]}  d5 {[%clk 0:02:58]} 4. fxe5 {[%clk 0:02:59]}  Nxe4 {[%clk 0:02:58]} 5. Nf3 {[%clk 0:03:00]}  Nc6 {[%clk 0:02:56]} 6. Qe2 {[%clk 0:02:57]}  Nxc3 {[%clk 0:02:55]} 7. dxc3 {[%clk 0:02:58]}  Be7 {[%clk 0:02:55]} 8. Bf4 {[%clk 0:02:59]}  Be6 {[%clk 0:02:55]} 9. O-O-O {[%clk 0:02:58]}  O-O {[%clk 0:02:52]} 10. h4 {[%clk 0:02:58]}  a5 {[%clk 0:02:50]} 11. Ng5 {[%clk 0:02:57]}  Qd7 {[%clk 0:02:39]} 12. Qh5 {[%clk 0:02:55]}  h6 {[%clk 0:02:32]} 13. Nxe6 {[%clk 0:02:16]}  Qxe6 {[%clk 0:02:31]} 14. Kb1 {[%clk 0:02:16]}  Rad8 {[%clk 0:02:25]} 15. Bd3 {[%clk 0:02:11]}  d4 {[%clk 0:02:20]} 16. Bf5 {[%clk 0:02:02]}  g6 {[%clk 0:02:16]} 17. Bxe6 {[%clk 0:02:02]}  gxh5 {[%clk 0:02:16]} 18. Bb3 {[%clk 0:02:00]}  dxc3 {[%clk 0:02:15]} 19. Rdf1 {[%clk 0:01:57]}  Kg7 {[%clk 0:01:48]} 20. bxc3 {[%clk 0:01:47]}  b5 {[%clk 0:01:47]} 21. a4 {[%clk 0:01:43]}  Rb8 {[%clk 0:01:42]} 22. Bd5 {[%clk 0:01:38]}  bxa4+ {[%clk 0:01:42]} 23. Ka2 {[%clk 0:01:38]}  Nd8 {[%clk 0:01:41]} 24. Rh3 {[%clk 0:01:34]}  Ne6 {[%clk 0:01:41]} 25. Rg3+ {[%clk 0:01:27]}  Kh7 {[%clk 0:01:34]} 26. Be4+ {[%clk 0:01:26]}  Kh8 {[%clk 0:01:35]} 27. Bxh6 {[%clk 0:01:27]}  Rg8 {[%clk 0:01:33]} 28. Rxf7 {[%clk 0:01:02]}  Rxg3 {[%clk 0:01:32]} 29. Rxe7 {[%clk 0:00:41]}  Nc5 {[%clk 0:01:32]} 30. Bf3 {[%clk 0:00:35]}  Rg6 {[%clk 0:01:20]} 31. Bg5 {[%clk 0:00:32]}  c6 {[%clk 0:00:38]} 32. Bxh5 {[%clk 0:00:26]}  Rxg5 {[%clk 0:00:31]} 33. hxg5 {[%clk 0:00:26]}  Ne4 {[%clk 0:00:32]} 34. Re8+ {[%clk 0:00:21]}  Rxe8 {[%clk 0:00:31]} 35. Bxe8 {[%clk 0:00:22]}  Nxc3+ {[%clk 0:00:29]} 36. Ka3 {[%clk 0:00:23]}  Kg7 {[%clk 0:00:27]} 37. Bxc6 {[%clk 0:00:21]}  Kg6 {[%clk 0:00:27]} 38. Bxa4 {[%clk 0:00:20]}  Kxg5 {[%clk 0:00:27]} 39. e6 {[%clk 0:00:20]}  Kf6 {[%clk 0:00:27]} 40. Bd7 {[%clk 0:00:20]}  Nd5 {[%clk 0:00:23]} 41. Ka4 {[%clk 0:00:20]}  Ne3 {[%clk 0:00:24]} 42. c3 {[%clk 0:00:19]}  Nc4 {[%clk 0:00:18]} 43. Bb5 {[%clk 0:00:17]}  Nd2 {[%clk 0:00:12]} 44. Bd7 {[%clk 0:00:17]}  Ne4 {[%clk 0:00:11]} 45. c4 {[%clk 0:00:17]}  Nd2 {[%clk 0:00:03]} 46. c5 {[%clk 0:00:16]}  Nc4 {[%clk 0:00:00]} 47. c6 {[%clk 0:00:15]} 1-0

[Event "January 2 Early 2024"]
[Site "https://www.chess.com"]
[Date "2024.01.02"]
[Round "9"]
[White "Koshulyan, Egor A."]
[Black "Popov, Konstantin"]
[Result "0-1"]
[Board "37"]
[TimeControl "180+1"]
[WhiteFideId "24237000"]
[BlackFideId "34137910"]
[WhiteElo "2668"]
[BlackElo "2910"]
[WhiteTeam "RUS"]
[BlackTeam "FID"]
[WhiteClock "0:00:03"]
[BlackClock "0:00:12"]

1. e4 {[%clk 0:03:00]}  c5 {[%clk 0:02:47]} 2. Nf3 {[%clk 0:02:59]}  d6 {[%clk 0:02:47]} 3. d4 {[%clk 0:02:59]}  cxd4 {[%clk 0:02:47]} 4. Qxd4 {[%clk 0:03:00]}  Nc6 {[%clk 0:02:46]} 5. Bb5 {[%clk 0:02:59]}  Bd7 {[%clk 0:02:45]} 6. Bxc6 {[%clk 0:03:00]}  Bxc6 {[%clk 0:02:45]} 7. Nc3 {[%clk 0:03:00]}  Nf6 {[%clk 0:02:44]} 8. Bg5 {[%clk 0:03:01]}  e6 {[%clk 0:02:44]} 9. O-O-O {[%clk 0:03:01]}  Be7 {[%clk 0:02:44]} 10. Qd3 {[%clk 0:03:01]}  Qa5 {[%clk 0:02:41]} 11. Kb1 {[%clk 0:03:01]}  h6 {[%clk 0:02:40]} 12. Bc1 {[%clk 0:03:01]}  Qa6 {[%clk 0:02:39]} 13. Qe3 {[%clk 0:02:57]}  b5 {[%clk 0:02:35]} 14. Rhe1 {[%clk 0:02:29]}  O-O {[%clk 0:02:29]} 15. Qd4 {[%clk 0:01:36]}  e5 {[%clk 0:02:16]} 16. Qd3 {[%clk 0:01:34]}  Qb7 {[%clk 0:02:15]} 17. Nh4 {[%clk 0:00:58]}  b4 {[%clk 0:02:03]} 18. Nd5 {[%clk 0:00:58]}  Nxd5 {[%clk 0:01:11]} 19. exd5 {[%clk 0:00:59]}  Bb5 {[%clk 0:01:11]} 20. Qg3 {[%clk 0:00:58]}  Bxh4 {[%clk 0:01:08]} 21. Qxh4 {[%clk 0:00:58]}  Rac8 {[%clk 0:01:04]} 22. Qg3 {[%clk 0:00:52]}  Kh7 {[%clk 0:00:57]} 23. f4 {[%clk 0:00:52]}  f6 {[%clk 0:00:54]} 24. h4 {[%clk 0:00:46]}  Qc7 {[%clk 0:00:49]} 25. Rd2 {[%clk 0:00:42]}  a5 {[%clk 0:00:41]} 26. h5 {[%clk 0:00:41]}  Qf7 {[%clk 0:00:41]} 27. Qh4 {[%clk 0:00:26]}  Rc4 {[%clk 0:00:40]} 28. g3 {[%clk 0:00:24]}  Rfc8 {[%clk 0:00:39]} 29. Qg4 {[%clk 0:00:20]}  Bd7 {[%clk 0:00:39]} 30. Qf3 {[%clk 0:00:19]}  Kg8 {[%clk 0:00:28]} 31. fxe5 {[%clk 0:00:19]}  fxe5 {[%clk 0:00:24]} 32. Qe3 {[%clk 0:00:19]}  Bf5 {[%clk 0:00:23]} 33. Ree2 {[%clk 0:00:19]}  Qxh5 {[%clk 0:00:23]} 34. Rh2 {[%clk 0:00:17]}  Qg6 {[%clk 0:00:23]} 35. Qb3 {[%clk 0:00:16]}  Be4 {[%clk 0:00:19]} 36. Rhe2 {[%clk 0:00:15]}  Kh7 {[%clk 0:00:19]} 37. Rf2 {[%clk 0:00:12]}  R4c5 {[%clk 0:00:17]} 38. Rfe2 {[%clk 0:00:11]}  Bf5 {[%clk 0:00:15]} 39. Rf2 {[%clk 0:00:12]}  Bd7 {[%clk 0:00:15]} 40. Rfe2 {[%clk 0:00:07]}  Rc4 {[%clk 0:00:16]} 41. Qe3 {[%clk 0:00:04]}  a4 {[%clk 0:00:15]} 42. Rf2 {[%clk 0:00:05]}  Bf5 {[%clk 0:00:15]} 43. b3 {[%clk 0:00:05]}  Bxc2+ {[%clk 0:00:13]} 44. Ka1 {[%clk 0:00:04]}  Bxb3 {[%clk 0:00:13]} 45. Bb2 {[%clk 0:00:03]}  Bc2 {[%clk 0:00:13]} 46. g4 {[%clk 0:00:02]}  a3 {[%clk 0:00:13]} 47. Bc1 {[%clk 0:00:02]}  Be4 {[%clk 0:00:12]} 48. Rd1 {[%clk 0:00:03]}  Rc2 {[%clk 0:00:12]} 49. Rxc2 {[%clk 0:00:03]}  Rxc2 {[%clk 0:00:11]} 50. g5 {[%clk 0:00:04]}  h5 {[%clk 0:00:12]} 51. Qd2 {[%clk 0:00:03]}  Rxd2 {[%clk 0:00:12]} 0-1

[Event "January 2 Early 2024"]
[Site "https://www.chess.com"]
[Date "2024.01.02"]
[Round "9"]
[White "Bjerre, Jonas Buhl"]
[Black "Piesik, Piotr"]
[Result "0-1"]
[Board "38"]
[TimeControl "180+1"]
[WhiteFideId "1444948"]
[BlackFideId "1136194"]
[WhiteElo "2871"]
[BlackElo "2667"]
[WhiteTeam "DEN"]
[BlackTeam "CZE"]
[WhiteClock "0:00:15"]
[BlackClock "0:00:12"]

1. Nf3 {[%clk 0:03:00]}  g6 {[%clk 0:02:54]} 2. e4 {[%clk 0:03:00]}  Bg7 {[%clk 0:02:55]} 3. d4 {[%clk 0:03:00]}  c6 {[%clk 0:02:56]} 4. Nc3 {[%clk 0:02:59]}  d6 {[%clk 0:02:56]} 5. Be3 {[%clk 0:02:55]}  Nd7 {[%clk 0:02:56]} 6. Qd2 {[%clk 0:02:55]}  e5 {[%clk 0:02:55]} 7. O-O-O {[%clk 0:02:52]}  Qe7 {[%clk 0:02:53]} 8. h3 {[%clk 0:02:48]}  Ngf6 {[%clk 0:02:53]} 9. g4 {[%clk 0:02:46]}  h5 {[%clk 0:02:50]} 10. g5 {[%clk 0:02:45]}  Nh7 {[%clk 0:02:50]} 11. h4 {[%clk 0:02:45]}  Nhf8 {[%clk 0:02:46]} 12. d5 {[%clk 0:02:44]}  c5 {[%clk 0:02:44]} 13. Bh3 {[%clk 0:02:39]}  a6 {[%clk 0:02:43]} 14. Kb1 {[%clk 0:02:19]}  b5 {[%clk 0:02:42]} 15. Ne2 {[%clk 0:02:12]}  Nb6 {[%clk 0:02:42]} 16. Bxc8 {[%clk 0:02:10]}  Nc4 {[%clk 0:02:39]} 17. Qc1 {[%clk 0:02:07]}  Rxc8 {[%clk 0:02:33]} 18. Ne1 {[%clk 0:02:06]}  Nxe3 {[%clk 0:02:27]} 19. Qxe3 {[%clk 0:02:05]}  f6 {[%clk 0:02:21]} 20. Nf3 {[%clk 0:02:00]}  Nd7 {[%clk 0:02:15]} 21. Rhg1 {[%clk 0:01:56]}  Qf7 {[%clk 0:01:56]} 22. gxf6 {[%clk 0:01:52]}  Bxf6 {[%clk 0:01:50]} 23. Ng5 {[%clk 0:01:52]}  Bxg5 {[%clk 0:01:49]} 24. Rxg5 {[%clk 0:01:52]}  Kd8 {[%clk 0:01:40]} 25. Rdg1 {[%clk 0:01:51]}  Rg8 {[%clk 0:01:34]} 26. Qa3 {[%clk 0:01:25]}  Qxf2 {[%clk 0:01:21]} 27. R5g2 {[%clk 0:01:25]}  Qxh4 {[%clk 0:01:19]} 28. Qxa6 {[%clk 0:01:24]}  Ke7 {[%clk 0:01:19]} 29. Nc3 {[%clk 0:01:19]}  Ra8 {[%clk 0:01:05]} 30. Qxb5 {[%clk 0:01:19]}  g5 {[%clk 0:00:52]} 31. Qe2 {[%clk 0:01:11]}  g4 {[%clk 0:00:50]} 32. Nd1 {[%clk 0:01:11]}  Qg5 {[%clk 0:00:41]} 33. Ne3 {[%clk 0:01:11]}  Rg6 {[%clk 0:00:26]} 34. Nxg4 {[%clk 0:01:03]}  hxg4 {[%clk 0:00:13]} 35. Rxg4 {[%clk 0:01:01]}  Qh5 {[%clk 0:00:13]} 36. b3 {[%clk 0:00:35]}  Nf6 {[%clk 0:00:13]} 37. Qb5 {[%clk 0:00:23]}  Rxg4 {[%clk 0:00:12]} 38. Qb7+ {[%clk 0:00:20]}  Nd7 {[%clk 0:00:12]} 39. Rxg4 {[%clk 0:00:18]}  Qxg4 {[%clk 0:00:13]} 40. Qxa8 {[%clk 0:00:19]}  Qxe4 {[%clk 0:00:13]} 41. a4 {[%clk 0:00:19]}  c4 {[%clk 0:00:11]} 42. a5 {[%clk 0:00:18]}  cxb3 {[%clk 0:00:11]} 43. Qc6 {[%clk 0:00:16]}  Qxc2+ {[%clk 0:00:11]} 44. Qxc2 {[%clk 0:00:17]}  bxc2+ {[%clk 0:00:12]} 45. Kxc2 {[%clk 0:00:15]}  Nc5 {[%clk 0:00:12]} 0-1

[Event "January 2 Early 2024"]
[Site "https://www.chess.com"]
[Date "2024.01.02"]
[Round "9"]
[White "Yeletsky, Ivan"]
[Black "Iskusnyh, Sergei"]
[Result "1-0"]
[Board "39"]
[TimeControl "180+1"]
[WhiteFideId "24180327"]
[BlackFideId "4120027"]
[WhiteElo "2845"]
[BlackElo "2664"]
[WhiteTeam "RUS"]
[BlackTeam "RUS"]
[WhiteClock "0:00:05"]
[BlackClock "0:00:00"]

1. Nf3 {[%clk 0:03:00]}  d5 {[%clk 0:02:59]} 2. g3 {[%clk 0:03:00]}  Nf6 {[%clk 0:02:58]} 3. Bg2 {[%clk 0:03:00]}  c6 {[%clk 0:02:59]} 4. c4 {[%clk 0:02:58]}  Bf5 {[%clk 0:02:58]} 5. Qb3 {[%clk 0:02:58]}  Qb6 {[%clk 0:02:45]} 6. d3 {[%clk 0:02:58]}  dxc4 {[%clk 0:02:34]} 7. Qxc4 {[%clk 0:02:55]}  e6 {[%clk 0:02:33]} 8. O-O {[%clk 0:02:54]}  Be7 {[%clk 0:02:29]} 9. Nbd2 {[%clk 0:02:32]}  O-O {[%clk 0:02:25]} 10. Qc2 {[%clk 0:02:32]}  c5 {[%clk 0:02:11]} 11. Nc4 {[%clk 0:02:32]}  Qa6 {[%clk 0:02:11]} 12. Nfe5 {[%clk 0:02:19]}  Nfd7 {[%clk 0:02:04]} 13. Qb3 {[%clk 0:02:17]}  Nb6 {[%clk 0:02:01]} 14. Bd2 {[%clk 0:01:52]}  f6 {[%clk 0:01:27]} 15. Nxb6 {[%clk 0:01:23]}  axb6 {[%clk 0:01:10]} 16. g4 {[%clk 0:01:02]}  fxe5 {[%clk 0:00:35]} 17. gxf5 {[%clk 0:01:02]}  Kh8 {[%clk 0:00:26]} 18. Qxe6 {[%clk 0:00:56]}  Bf6 {[%clk 0:00:25]} 19. Qc4 {[%clk 0:00:31]}  Nc6 {[%clk 0:00:20]} 20. Qxa6 {[%clk 0:00:31]}  Rxa6 {[%clk 0:00:21]} 21. e3 {[%clk 0:00:21]}  Rd8 {[%clk 0:00:20]} 22. Be4 {[%clk 0:00:20]}  c4 {[%clk 0:00:20]} 23. Rfd1 {[%clk 0:00:18]}  cxd3 {[%clk 0:00:19]} 24. Bc3 {[%clk 0:00:19]}  b5 {[%clk 0:00:17]} 25. Bxd3 {[%clk 0:00:17]}  Rxd3 {[%clk 0:00:12]} 26. Rxd3 {[%clk 0:00:17]}  b4 {[%clk 0:00:12]} 27. Bd2 {[%clk 0:00:11]}  e4 {[%clk 0:00:13]} 28. Rd7 {[%clk 0:00:08]}  Rb6 {[%clk 0:00:09]} 29. Rb1 {[%clk 0:00:07]}  Rb5 {[%clk 0:00:08]} 30. Kf1 {[%clk 0:00:06]}  h5 {[%clk 0:00:08]} 31. b3 {[%clk 0:00:05]}  Ne5 {[%clk 0:00:06]} 32. Rc7 {[%clk 0:00:05]}  Nd3 {[%clk 0:00:06]} 33. Ke2 {[%clk 0:00:04]}  Rxf5 {[%clk 0:00:06]} 34. f4 {[%clk 0:00:05]}  Ra5 {[%clk 0:00:00]} 35. a4 {[%clk 0:00:05]} 1-0